[Event "81st Georgian Women-ch 2024"]
[Site "Tbilisi"]
[Date "2024.02.16"]
[Round "7.5"]
[White "Javakhishvili, Lela"]
[Black "Arabidze, Meri"]
[Result "1-0"]
[ECO "D24"]
[WhiteElo "2433"]
[BlackElo "2466"]
[Annotator "TA"]
[PlyCount "99"]
[EventDate "2024.02.08"]
[EventType "tourn"]
[EventCountry "GEO"]
[SourceTitle "playchess.com"]
[Source "ChessBase"]
[SourceQuality "1"]
[TimeControl "40/5400+30:1800+30"]

{[%evp 9,99,23,45,38,56,45,43,34,43,34,48,48,43,37,59,44,30,41,43,15,20,12,28,22,68,70,73,91,72,76,100,84,110,93,99,101,139,145,149,149,178,150,166,156,140,149,218,219,200,214,212,154,201,211,215,208,234,225,231,227,314,234,309,320,290,287,318,291,377,379,376,382,517,506,531,541,633,637,772,770,605,726,743,745,1006,964,1297,1243,12841,6690,6374,6303]} 1. d4 {[%emt 0:00:06]} Nf6 {[%emt 0:00:09]} 2. c4 {[%emt 0:00:11]} e6 {[%emt 0:00:03]} 3. Nf3 {[%emt 0:00:11]} d5 {[%emt 0:00:05]} 4. Nc3 {[%emt 0:00:31]} dxc4 {[%emt 0:00:07]} 5. e4 {[%emt 0:00:57][%cal Be2e4,Be4e5][%mdl 32]} b5 {[%emt 0:00:11]} 6. e5 {[%emt 0:00:12]} Nd5 {[%emt 0:00:05]} 7. Nxb5 {[%emt 0:00:07]} Nb6 {[%emt 0:00:03]} 8. Be2 {[%emt 0:00:22] White is slightly better.} Nc6 {[%emt 0:00:10]} 9. Be3 {[%emt 0:00:29]} Be7 {[%emt 0:01:59]} 10. O-O {[%emt 0:00:59]} O-O {[%emt 0:00:05]} 11. Nc3 {[%emt 0:01:48]} Bb7 {[%emt 0:02:08]} 12. Na4 {[%emt 0:08:34]} Ba6 {[%emt 0:00:33]} 13. a3 {[%emt 0:04:00]} Na5 {[%emt 0:09:54]} 14. Nd2 {[%emt 0:03:03] Wards off Nb3} ({Much worse is} 14. Nc5 Bxc5 15. dxc5 Qxd1 16. Raxd1 (16. Rfxd1 Na4 $15) 16... Na4 $11) (14. Qc2 {is more complex.} Nb3 15. Rab1 Rb8 16. Nc5) 14... Qd7 {[%emt 0:09:21]} 15. Nc3 {[%emt 0:13:50]} Bb7 {[%emt 0:13:17]} 16. Qc2 {[%emt 0:00:34]} f5 {[%emt 0:12:13]} (16... Rfd8 $11 {feels stronger.}) 17. exf6 $14 {[%emt 0:00:46]} gxf6 {[%emt 0:04:01] White leaves nothing to chance now.} 18. Bf3 {[%emt 0:05:21]} Bxf3 {[%emt 0:04:40]} 19. Nxf3 {[%emt 0:00:21]} Kh8 {[%emt 0:02:20]} 20. Rfe1 {[%emt 0:03:38]} Rg8 {[%emt 0:02:11]} 21. Bf4 {[%emt 0:06:17]} Bd6 {[%emt 0:04:20]} 22. Bg3 {[%emt 0:00:56]} Bxg3 {[%emt 0:03:25]} 23. hxg3 {[%emt 0:00:26]} Rae8 {[%emt 0:05:00]} 24. Re2 {[%emt 0:04:19]} Nc6 {[%emt 0:02:00]} 25. Qe4 {[%emt 0:06:07]} e5 {[%emt 0:07:57]} 26. dxe5 {[%emt 0:02:26]} Nxe5 {[%emt 0:00:28]} 27. Qf4 {[%emt 0:06:02]} Ng4 {[%emt 0:02:25]} (27... Nxf3+ $16 28. gxf3 (28. Qxf3 Rxe2 29. Qxe2 Qe8 $16) 28... Rxe2 29. Nxe2 (29. Qxf6+ Qg7 $18) 29... Qd6) 28. Rxe8 $18 {[%emt 0:02:09]} Rxe8 {[%emt 0:00:12]} 29. Rd1 {[%emt 0:07:04] Prevents c6} Qg7 {[%emt 0:00:04]} 30. Nb5 {[%emt 0:04:01]} Ne5 {[%emt 0:01:03]} (30... Na4 $16) 31. Nxe5 {[%emt 0:00:12]} ({Don't take} 31. Nxa7 $6 c6 $16) 31... fxe5 {[%emt 0:00:09]} 32. Qe4 {[%emt 0:00:15]} a6 {[%emt 0:01:40]} 33. Qc6 {[%emt 0:03:59]} Rc8 {[%emt 0:00:42]} 34. Nc3 {[%emt 0:00:18]} Qe7 {[%emt 0:05:26]} 35. Ne4 {[%emt 0:05:22]} Rd8 {[%emt 0:00:50]} 36. Rxd8+ {[%emt 0:01:40]} Qxd8 {[%emt 0:00:04][%mdl 4096] Endgame. KQN-KQN} 37. Kh2 {[%emt 0:01:22]} Kg7 {[%emt 0:02:27]} 38. Qc5 {[%emt 0:01:20]} Nd5 {[%emt 0:05:07]} 39. Qxc4 {[%emt 0:00:29]} a5 {[%emt 0:00:00]} 40. Qb5 {[%emt 0:00:00] Dodges Qd7} Kg6 {[%emt 0:00:00]} 41. Qxa5 {[%emt 0:06:43] White is clearly winning.} Kf5 {[%emt 0:03:24]} 42. Qa4 {[%emt 0:03:25]} h5 {[%emt 0:05:07]} 43. Qc2 {[%emt 0:00:59]} Ke6 {[%emt 0:00:56]} 44. Nc5+ {[%emt 0:00:55]} Kf6 {[%emt 0:00:06]} 45. Qh7 {[%emt 0:01:11]} Qe8 {[%emt 0:00:53]} 46. a4 {[%emt 0:03:28]} Ne7 {[%emt 0:00:32]} 47. b4 {[%emt 0:02:52]} Nf5 {[%emt 0:01:55]} 48. Qxc7 {[%emt 0:01:28] [#] Hoping for Ne4+.} h4 {[%emt 0:00:52]} 49. g4 {[%emt 0:02:56]} Nd4 {[%emt 0:00:15]} 50. Nd7+ {[%emt 0:00:52] Weighted Error Value: White=0.09 (flawless) /Black=0.26 (precise) .  Mistake:       	---       	Black=3      Inaccurate:     	White=1     	Black=5      OK:         	White=17    	Black=11     Best:        	White=3     	---} 1-0

[Event "81st Georgian Women-ch 2024"]
[Site "Tbilisi"]
[Date "2024.02.17"]
[Round "8.1"]
[White "Melia, Salome"]
[Black "Arabidze, Meri"]
[Result "0-1"]
[ECO "C76"]
[WhiteElo "2355"]
[BlackElo "2466"]
[Annotator "RC"]
[PlyCount "180"]
[EventDate "2024.02.08"]
[EventType "tourn"]
[EventCountry "GEO"]
[SourceTitle "playchess.com"]
[Source "ChessBase"]
[SourceQuality "1"]
[TimeControl "40/5400+30:1800+30"]

1. e4 {[%emt 0:00:03]} e5 {[%emt 0:00:11]} 2. Nf3 {[%emt 0:00:13]} Nc6 {[%emt 0:00:04]} 3. Bb5 {[%emt 0:00:16]} a6 {[%emt 0:00:05]} 4. Ba4 {[%emt 0:00:05]} Nf6 {[%emt 0:00:04]} 5. O-O {[%emt 0:00:27]} d6 {[%emt 0:00:03]} 6. c3 {[%emt 0:00:42]} Bd7 {[%emt 0:00:28]} 7. Re1 {[%emt 0:00:28]} g6 {[%emt 0:00:16]} 8. d4 {[%emt 0:00:08]} b5 {[%emt 0:00:42]} 9. Bc2 {[%emt 0:01:56]} Bg7 {[%emt 0:00:15]} 10. h3 {[%emt 0:00:14]} O-O {[%emt 0:00:32]} 11. Nbd2 {[%emt 0:00:07]} a5 {[%emt 0:11:57]} 12. d5 {[%emt 0:09:41]} Ne7 {[%emt 0:03:25]} 13. a4 {[%emt 0:00:06]} c6 {[%emt 0:02:38]} 14. dxc6 {[%emt 0:02:32]} Bxc6 {[%emt 0:00:05]} 15. axb5 {[%emt 0:00:11]} Bxb5 {[%emt 0:00:03]} 16. c4 {[%emt 0:06:34]} Ba6 {[%emt 0:02:55]} 17. b3 {[%emt 0:04:41]} Nd7 {[%emt 0:05:04]} 18. Nb1 {[%emt 0:01:58]} Nc5 {[%emt 0:03:41]} 19. Nc3 {[%emt 0:00:08]} Nc6 {[%emt 0:04:29]} 20. Nd5 {[%emt 0:13:37]} h6 {[%emt 0:01:44]} 21. Bb2 {[%emt 0:06:11]} Rb8 {[%emt 0:05:15]} 22. Bc3 {[%emt 0:02:03]} Bc8 {[%emt 0:00:30]} 23. Ra3 {[%emt 0:03:23]} f5 {[%emt 0:12:28]} 24. exf5 {[%emt 0:05:14]} gxf5 {[%emt 0:01:35]} 25. Nh2 {[%emt 0:07:07]} Rf7 {[%emt 0:08:51]} 26. Qd2 {[%emt 0:03:04]} Be6 {[%emt 0:02:03]} 27. Nf1 {[%emt 0:08:32]} Qg5 {[%emt 0:10:38]} 28. f4 {[%emt 0:06:08]} Qd8 {[%emt 0:02:48]} 29. Re3 {[%emt 0:12:06]} Qh4 {[%emt 0:05:09]} 30. Rg3 {[%emt 0:02:11]} Ne4 {[%emt 0:03:40]} 31. Bxe4 {[%emt 0:01:04]} fxe4 {[%emt 0:00:01]} 32. Qe1 {[%emt 0:01:22]} Kh8 {[%emt 0:05:01]} 33. Qxe4 {[%emt 0:00:27]} Rg8 {[%emt 0:01:53]} 34. Ra2 {[%emt 0:03:18]} Bf5 {[%emt 0:05:39]} 35. Qe1 {[%emt 0:00:34]} Qh5 {[%emt 0:01:39]} 36. fxe5 {[%emt 0:00:42]} dxe5 {[%emt 0:00:48]} 37. Rf2 {[%emt 0:00:27]} Rgf8 {[%emt 0:01:19]} 38. Nfe3 {[%emt 0:00:50]} Bd3 {[%emt 0:00:44]} 39. Ng4 {[%emt 0:00:32]} Rxf2 {[%emt 0:00:43]} 40. Nxf2 {[%emt 0:00:00]} Bc2 {[%emt 0:00:00]} 41. Nd3 {[%emt 0:13:18]} Qd1 {[%emt 0:13:50]} 42. Qxd1 {[%emt 0:06:49]} Bxd1 {[%emt 0:00:14]} 43. Nc5 {[%emt 0:09:45]} Rf7 {[%emt 0:00:43]} 44. Rd3 {[%emt 0:01:24]} Bc2 {[%emt 0:03:38]} 45. Rd2 {[%emt 0:00:02]} Bf8 {[%emt 0:00:17]} 46. Rxc2 {[%emt 0:02:00]} Bxc5+ {[%emt 0:00:02]} 47. Kh2 {[%emt 0:00:23]} Bd4 {[%emt 0:00:20]} 48. Ra2 {[%emt 0:00:53]} Rb7 {[%emt 0:02:20]} 49. Bxa5 {[%emt 0:00:14]} Nxa5 {[%emt 0:01:49]} 50. Rxa5 {[%emt 0:00:02]} Rxb3 {[%emt 0:00:06]} 51. Ra6 {[%emt 0:00:54]} Kh7 {[%emt 0:01:06]} 52. Nf6+ {[%emt 0:00:45]} Kg7 {[%emt 0:00:07]} 53. Ne4 {[%emt 0:00:29]} Rb1 {[%emt 0:02:57]} 54. Kg3 {[%emt 0:00:09]} Rf1 {[%emt 0:03:53]} 55. Rc6 {[%emt 0:00:51]} h5 {[%emt 0:01:46]} 56. Rc7+ {[%emt 0:00:35]} Kg6 {[%emt 0:00:12]} 57. Rc6+ {[%emt 0:00:04]} Kg7 {[%emt 0:00:06]} 58. Nd2 {[%emt 0:00:44]} Rf4 {[%emt 0:00:29]} 59. Nf3 {[%emt 0:00:35]} h4+ {[%emt 0:00:33]} 60. Kh2 {[%emt 0:00:13]} Bf2 {[%emt 0:00:44]} 61. Rc7+ {[%emt 0:00:28]} Kf6 {[%emt 0:00:28]} 62. Rc6+ {[%emt 0:00:05]} Ke7 {[%emt 0:02:39]} 63. Ng5 {[%emt 0:01:19]} Kd7 {[%emt 0:01:15]} 64. Ra6 {[%emt 0:00:27]} Rxc4 {[%emt 0:00:33]} 65. Ra1 {[%emt 0:00:26]} e4 {[%emt 0:00:49]} 66. Rf1 {[%emt 0:00:42]} e3 {[%emt 0:00:34]} 67. Nf3 {[%emt 0:00:12]} Ke6 {[%emt 0:01:05]} 68. Kh1 {[%emt 0:00:11]} Kf5 {[%emt 0:01:18]} 69. Rd1 {[%emt 0:01:02]} e2 {[%emt 0:00:21]} 70. Rb1 {[%emt 0:00:32]} Kf4 {[%emt 0:00:15]} 71. Kh2 {[%emt 0:00:29]} Re4 {[%emt 0:00:28]} 72. Ra1 {[%emt 0:00:31]} e1=Q {[%emt 0:01:25]} 73. Nxe1 {[%emt 0:00:18]} Bxe1 {[%emt 0:00:06]} 74. Kg1 {[%emt 0:00:37]} Bg3 {[%emt 0:00:01]} 75. Kf1 {[%emt 0:00:13]} Kg5 {[%emt 0:00:39]} 76. Rb1 {[%emt 0:00:26]} Rf4+ {[%emt 0:00:30]} 77. Kg1 {[%emt 0:00:24]} Bf2+ {[%emt 0:00:09]} 78. Kh2 {[%emt 0:00:17]} Re4 {[%emt 0:00:22]} 79. Rf1 {[%emt 0:01:08]} Re2 {[%emt 0:00:17]} 80. Rb1 {[%emt 0:00:31]} Kf4 {[%emt 0:00:50]} 81. Rb4+ {[%emt 0:00:22]} Re4 {[%emt 0:00:01]} 82. Rb1 {[%emt 0:00:28]} Re1 {[%emt 0:01:59]} 83. Rxe1 {[%emt 0:00:44]} Bxe1 {[%emt 0:00:01]} 84. Kg1 {[%emt 0:00:10]} Bg3 {[%emt 0:00:28]} 85. Kf1 {[%emt 0:00:25]} Ke3 {[%emt 0:00:03]} 86. Kg1 {[%emt 0:00:07]} Ke2 {[%emt 0:00:13]} 87. Kh1 {[%emt 0:00:04]} Be5 {[%emt 0:00:11]} 88. Kg1 {[%emt 0:01:14]} Bd4+ {[%emt 0:00:05]} 89. Kh2 {[%emt 0:00:27]} Kf2 {[%emt 0:00:12]} 90. Kh1 {[%emt 0:00:20]} Be5 {[%emt 0:00:04]} 0-1

[Event "81st Georgian Women-ch 2024"]
[Site "Tbilisi"]
[Date "2024.02.17"]
[Round "8.2"]
[White "Mgeladze, Kesaria"]
[Black "Javakhishvili, Lela"]
[Result "0-1"]
[ECO "B06"]
[WhiteElo "2038"]
[BlackElo "2433"]
[Annotator "TA"]
[PlyCount "88"]
[EventDate "2024.02.08"]
[EventType "tourn"]
[EventCountry "GEO"]
[SourceTitle "playchess.com"]
[Source "ChessBase"]
[SourceQuality "1"]
[TimeControl "40/5400+30:1800+30"]

{[%evp 11,88,35,59,23,34,46,51,45,45,43,53,45,53,0,39,20,25,20,23,29,60,0,2,9,63,14,15,0,0,0,0,0,0,0,0,-74,-57,-52,-45,-27,-47,-147,-129,-292,-304,-293,-270,-241,-261,-297,-286,-260,-169,-223,-226,-337,-348,-329,-305,-295,-312,-323,-303,-327,-325,-388,-289,-293,-282,-620,-585,-683,-688,-935,-956,-831,-743,-820,-808]} 1. e4 {[%emt 0:00:03]} g6 {[%emt 0:00:10]} 2. d4 {[%emt 0:00:08]} Bg7 {[%emt 0:00:07]} 3. Nc3 {[%emt 0:00:06]} a6 {[%emt 0:00:05]} 4. Be3 {[%emt 0:00:10]} d6 {[%emt 0:00:05]} 5. Qd2 {[%emt 0:00:19]} b5 {[%emt 0:00:14]} 6. O-O-O {[%emt 0:00:58]} Nd7 {[%emt 0:00:24]} 7. h4 {[%emt 0:01:29]} h5 $1 {[%emt 0:03:51]} 8. Nh3 {[%emt 0:00:25]} Nb6 {[%emt 0:00:48]} 9. Bd3 {[%emt 0:03:14] White is slightly better.} Nf6 {[%emt 0:07:15]} 10. f3 {[%emt 0:01:39] Prevents Ng4.} Bxh3 {[%emt 0:00:31]} 11. Rxh3 {[%emt 0:00:37]} Nfd7 {[%emt 0:02:31]} 12. Qf2 {[%emt 0:09:54]} (12. f4 $14) 12... Qc8 {[%emt 0:06:29]} 13. f4 {[%emt 0:37:32]} b4 {[%emt 0:04:12]} 14. Nd5 {[%emt 0:00:56]} Nxd5 {[%emt 0:06:24]} 15. exd5 {[%emt 0:00:05] [#] Strongly threatening f5.} Nf6 {[%emt 0:00:44]} 16. f5 {[%emt 0:03:05]} (16. Kb1 $14) 16... Ng4 $11 {[%emt 0:03:59]} 17. Qe2 {[%emt 0:00:30] aiming for Bg5.} gxf5 {[%emt 0:02:14]} (17... Nxe3 $11 18. Rxe3 Bh6) 18. Bg5 {[%emt 0:01:06]} (18. Bd2 $14) 18... O-O $1 {[%emt 0:01:38]} 19. Rf3 {[%emt 0:09:03]} (19. Qxe7 $2 Re8 (19... Bxd4 20. Qe2 $14) 20. Re1 Rxe7 $19) 19... e6 {[%emt 0:00:57]} 20. Bc4 {[%emt 0:00:20]} Re8 {[%emt 0:06:41]} 21. dxe6 {[%emt 0:06:04]} fxe6 {[%emt 0:00:14]} 22. Bb3 {[%emt 0:05:18] This pair of bishops is nice.} (22. Rxf5 $2 d5 $19) 22... d5 {[%emt 0:04:26]} 23. Bf4 {[%emt 0:01:19]} (23. Ba4 $11) 23... c5 {[%emt 0:03:15]} 24. Ba4 {[%emt 0:01:55]} Bxd4 {[%emt 0:10:21]} 25. Bxe8 {[%emt 0:00:05]} Qxe8 {[%emt 0:00:04]} 26. Rg3 {[%emt 0:06:47]} ({White should play} 26. Re1 $1 $15 Kf7 (26... e5 27. c3 $16) 27. Be3) 26... Kf7 $17 {[%emt 0:04:51]} 27. Rxd4 $2 {[%emt 0:04:24] White does not recover from this.} cxd4 $19 {[%emt 0:00:09]} 28. Be5 {[%emt 0:00:08]} Qe7 {[%emt 0:05:09]} 29. Bxd4 {[%emt 0:02:09]} Qxh4 {[%emt 0:04:03]} 30. Rh3 {[%emt 0:00:04]} Qg5+ {[%emt 0:00:30]} 31. Kb1 {[%emt 0:00:03]} Re8 {[%emt 0:04:39]} 32. Rh1 {[%emt 0:01:44]} (32. Rf3 $142) 32... Qf4 {[%emt 0:01:19]} 33. Bc5 {[%emt 0:00:41]} (33. Bb6 $142) 33... Rc8 {[%emt 0:03:59]} 34. Rf1 {[%emt 0:03:19]} Qc4 {[%emt 0:02:11]} ({Less strong is} 34... Qe4 35. Qxa6 Rd8 (35... Rxc5 36. Qa7+ Kg6 37. Qxc5 $11) (35... Qxg2 $2 36. Rg1 $18) 36. Qb6 $15) 35. Qxc4 {[%emt 0:00:39]} dxc4 {[%emt 0:00:04]} 36. Bxb4 {[%emt 0:00:04][%mdl 4096] Endgame. KRB-KRN} Ne3 {[%emt 0:01:13][%csl LRf1,LRg2]} 37. Rh1 {[%emt 0:00:26]} Rg8 {[%emt 0:01:54]} ({Don't do} 37... Nxg2 38. Rxh5 Ne3 39. Kc1 $19) 38. Bd2 {[%emt 0:01:05]} Nd5 {[%emt 0:00:21]} ({Resist} 38... Nxg2 39. Rxh5 f4 40. Kc1 $19) 39. Rh2 {[%emt 0:00:39]} Rg4 {[%emt 0:00:23]} 40. Rxh5 $2 {[%emt 0:00:00]} (40. c3) 40... Rxg2 {[%emt 0:00:00] Black is clearly winning.} 41. Bc1 {[%emt 0:00:45]} Rg1 {[%emt 0:04:35]} 42. c3 {[%emt 0:01:39]} Nf4 {[%emt 0:02:54]} 43. Rh7+ {[%emt 0:00:17]} Kg8 {[%emt 0:00:25][%cal Of4d3] [#] ( -> ...Nd3!)} 44. Rc7 {[%emt 0:00:14]} Nd3 {[%emt 0:00:35] Weighted Error Value: White=0.44/Black=0.15 (very precise) .  Loses game:     	White=1     	---        Mistake:       	White=8     	Black=1      Inaccurate:     	White=1     	Black=3      OK:         	White=13    	Black=11     Best:        	---       	Black=5      Strong:       	---       	Black=2} 0-1

[Event "81st Georgian Women-ch 2024"]
[Site "Tbilisi"]
[Date "2024.02.17"]
[Round "8.3"]
[White "Donghvani, Nia"]
[Black "Lomaia, Diana"]
[Result "0-1"]
[ECO "E15"]
[WhiteElo "2036"]
[BlackElo "2037"]
[Annotator "NA RC"]
[PlyCount "86"]
[EventDate "2024.02.08"]
[EventType "tourn"]
[EventCountry "GEO"]
[SourceTitle "playchess.com"]
[Source "ChessBase"]
[SourceQuality "1"]
[TimeControl "40/5400+30:1800+30"]

1. d4 {[%emt 0:00:08]} Nf6 {[%emt 0:00:07]} 2. c4 {[%emt 0:00:04]} e6 {[%emt 0:00:02]} 3. Nf3 {[%emt 0:00:03]} b6 {[%emt 0:00:05]} 4. g3 {[%emt 0:00:03]} Ba6 {[%emt 0:00:04]} 5. Qc2 {[%emt 0:06:18]} Bb7 {[%emt 0:02:24]} 6. Bg2 {[%emt 0:00:37]} c5 {[%emt 0:01:26]} 7. dxc5 {[%emt 0:02:26]} Bxc5 {[%emt 0:02:52]} 8. O-O {[%emt 0:00:06] E15: Queen's Indian: 4 g3 sidelines, 4 g3 Ba6 and 4 g3 Bb7 early deviations.} O-O {[%emt 0:02:15]} 9. a3 {[%emt 0:01:03]} a5 {[%emt 0:04:07]} 10. Nc3 {[%emt 0:01:37]} d5 {[%emt 0:03:40]} 11. cxd5 {[%emt 0:04:43]} exd5 {[%emt 0:01:35]} 12. Bf4 {[%emt 0:10:42]} Qe7 {[%emt 0:03:24]} 13. Rad1 {[%emt 0:17:19]} Rd8 {[%emt 0:04:09]} 14. Nd4 {[%emt 0:13:40]} Bxd4 {[%emt 0:17:59]} 15. Rxd4 {[%emt 0:00:10]} Nc6 {[%emt 0:00:36]} 16. Rd2 {[%emt 0:09:14]} d4 {[%emt 0:05:20]} 17. Na4 {[%emt 0:08:14]} d3 {[%emt 0:03:07]} 18. exd3 {[%emt 0:04:00]} Nd4 {[%emt 0:03:08]} 19. Qc7 {[%emt 0:03:19]} Rd7 {[%emt 0:06:56]} 20. Qxb6 {[%emt 0:02:06]} Bxg2 {[%emt 0:19:26]} 21. Kxg2 {[%emt 0:00:01]} Rc8 {[%emt 0:08:43]} 22. Nc3 {[%emt 0:01:36]} h5 {[%emt 0:02:11]} 23. Qxa5 {[%emt 0:01:52]} Nb3 $14 {[%emt 0:02:04]} 24. Qa6 {[%emt 0:00:02]} Qd8 {[%emt 0:03:47]} 25. Rdd1 {[%emt 0:01:18]} Nc5 {[%emt 0:00:21]} 26. Qb5 {[%emt 0:03:31]} Nxd3 {[%emt 0:00:03]} 27. Bg5 {[%emt 0:02:52]} Rc5 {[%emt 0:00:26]} 28. Bxf6 {[%emt 0:00:02]} Qa8+ {[%emt 0:00:36]} 29. f3 {[%emt 0:00:50]} Rxb5 {[%emt 0:00:07]} 30. Nxb5 {[%emt 0:00:01]} gxf6 {[%emt 0:00:13]} 31. Nc3 {[%emt 0:00:07]} Qc6 {[%emt 0:01:17]} 32. Ne4 {[%emt 0:00:45]} f5 {[%emt 0:01:00]} 33. Nf2 {[%emt 0:00:16]} Ne5 {[%emt 0:00:27]} 34. Rxd7 {[%emt 0:08:25]} Qxf3+ {[%emt 0:00:10]} 35. Kg1 {[%emt 0:00:00]} Nxd7 {[%emt 0:00:04]} 36. Nh3 {[%emt 0:00:00]} Qe3+ {[%emt 0:00:27]} 37. Kg2 {[%emt 0:00:00]} Ne5 {[%emt 0:00:18]} 38. Nf4 {[%emt 0:00:00]} Ng4 {[%emt 0:01:03]} 39. Kh3 {[%emt 0:00:00]} Qd2 {[%emt 0:00:52]} 40. Kh4 {[%emt 0:00:00]} Nxh2 {[%emt 0:00:00]} 41. Rh1 {[%emt 0:00:00]} Nf3+ {[%emt 0:02:23]} 42. Kxh5 {[%emt 0:00:00]} Qd8 {[%emt 0:00:21]} 43. Nh3 {[%emt 0:00:00]} Qf6 {[%emt 0:00:13]} 0-1

[Event "81st Georgian Women-ch 2024"]
[Site "Tbilisi"]
[Date "2024.02.17"]
[Round "8.4"]
[White "Khotenashvili, Bella"]
[Black "Kirtadze, Anastasia"]
[Result "1-0"]
[ECO "D00"]
[WhiteElo "2467"]
[BlackElo "1981"]
[Annotator "TA"]
[PlyCount "73"]
[EventDate "2024.02.08"]
[EventType "tourn"]
[EventCountry "GEO"]
[SourceTitle "playchess.com"]
[Source "ChessBase"]
[SourceQuality "1"]
[TimeControl "40/5400+30:1800+30"]

{[%evp 9,73,2,-5,0,15,8,3,7,31,31,82,59,70,69,93,101,108,62,89,130,170,161,151,151,183,175,272,252,258,200,296,250,300,274,283,199,202,194,234,163,168,170,251,256,349,328,356,281,1026,728,912,894,949,527,520,520,641,664,930,918,921,898,1852,1164,1523,1452]} 1. d4 {[%emt 0:01:43]} Nf6 {[%emt 0:00:10]} 2. Bg5 {[%emt 0:00:23]} d5 {[%emt 0:00:34]} 3. e3 {[%emt 0:00:23]} c5 {[%emt 0:04:12]} 4. c3 {[%emt 0:00:06]} Nc6 {[%emt 0:07:32]} 5. Bxf6 {[%emt 0:00:32]} gxf6 {[%emt 0:00:27]} 6. dxc5 {[%emt 0:00:06]} e5 {[%emt 0:03:53]} 7. b4 {[%emt 0:00:10]} a5 {[%emt 0:05:23]} 8. Bb5 {[%emt 0:01:04] The position is equal.} Bd7 {[%emt 0:05:28]} 9. Qb3 {[%emt 0:06:26]} Qc7 {[%emt 0:07:13]} (9... Bg7 $14) 10. Nd2 {[%emt 0:07:10]} (10. Qxd5 axb4 11. Ne2 Be6 $11) 10... Be6 {[%emt 0:13:34]} 11. Ne2 {[%emt 0:12:04]} h5 {[%emt 0:07:52]} 12. O-O {[%emt 0:27:05]} h4 {[%emt 0:03:05]} 13. f4 {[%emt 0:00:17] White is more active.} (13. a3 $16) 13... d4 {[%emt 0:08:20]} 14. Bc4 {[%emt 0:00:40]} a4 {[%emt 0:05:10]} 15. Qc2 {[%emt 0:01:03]} dxe3 {[%emt 0:02:48] [#]} 16. Bxe6 $1 {[%emt 0:00:26][%cal Od2e4]} fxe6 {[%emt 0:03:52]} 17. Nc4 {[%emt 0:01:52] Strongly threatening fxe5.} f5 {[%emt 0:03:32]} (17... Qh7 {is a better defense.} 18. Qxh7 (18. Nxe3 Qxc2 19. Nxc2 O-O-O $16) 18... Rxh7) 18. Rad1 $18 {[%emt 0:03:06]} (18. Nxe3 $6 O-O-O $18) 18... Be7 {[%emt 0:02:28]} 19. Qd3 {[%emt 0:07:09] fxe5 is the strong threat.} (19. Nxe3 Rd8 20. Qxa4 Kf7 $18) 19... h3 {[%emt 0:03:49]} (19... e4 $142 20. Qxe3 Rd8) 20. g3 {[%emt 0:01:09]} (20. Nxe3 hxg2 21. Nxg2 (21. Kxg2 exf4 22. Nxf4 Rd8 $11) 21... Rh6 $14) 20... e4 {[%emt 0:01:37]} 21. Qc2 {[%emt 0:04:45]} O-O {[%emt 0:01:15]} 22. Qc1 {[%emt 0:08:47]} Rad8 {[%emt 0:02:57]} 23. Qxe3 {[%emt 0:00:11]} e5 {[%emt 0:01:28]} 24. Nb6 {[%emt 0:01:13]} Bf6 {[%emt 0:01:10]} 25. Nd5 {[%emt 0:06:05]} ({Resist} 25. Nxa4 Rxd1 26. Rxd1 Rd8 $16) 25... Qg7 {[%emt 0:01:02]} (25... Qf7 $142 26. c4 exf4 27. Nexf4 (27. gxf4 Qg7+ 28. Qg3 Kf7 $14) 27... Bg7 28. Nxh3 Rde8) 26. b5 {[%emt 0:01:44]} Na5 {[%emt 0:00:56]} 27. Nxf6+ {[%emt 0:00:27]} Qxf6 {[%emt 0:00:13]} 28. fxe5 {[%emt 0:01:29]} Qe7 {[%emt 0:01:57]} (28... Nc4 29. Qf4 Nxe5 30. Rxd8 Rxd8) 29. Rd4 {[%emt 0:02:45] White is clearly winning.} Qg7 {[%emt 0:01:21]} 30. Nf4 {[%emt 0:00:44] [#] And now Ne6 would win.} Qg4 {[%emt 0:01:28]} 31. Qe2 {[%emt 0:02:41]} Qxe2 {[%emt 0:00:39]} 32. Nxe2 {[%emt 0:00:02]} Rc8 {[%emt 0:00:24]} 33. Rxa4 {[%emt 0:00:20]} b6 {[%emt 0:00:21]} 34. cxb6 {[%emt 0:00:57][%cal Bc5b6,Bb6b7][%mdl 32]} Nc4 {[%emt 0:00:10]} 35. b7 {[%emt 0:00:03] aiming for Rxf5.} Rc5 {[%emt 0:00:26]} 36. Nd4 {[%emt 0:01:57] Ra8 would kill now.} Rxe5 {[%emt 0:00:38]} 37. Rxc4 {[%emt 0:00:39] Weighted Error Value: White=0.38/Black=0.42.  Mistake:       	White=1     	Black=5      Inaccurate:     	White=1     	Black=4      OK:         	White=10    	Black=3      Best:        	White=2     	Black=2      Strong:       	White=1     	---} 1-0